bitfinex-derivatives/quotes_SOLF0:USTF0_20260306
["timestamp","ask_amount","ask_price","bid_price","bid_amount"]
[1772783524098,6.75844778,88.704,88.67,2.9582503]
[1772783527003,6.75844778,88.698,88.654,3.12653506]
[1772783527802,6.75844778,88.709,88.661,3.1529043]
[1772783528002,6.75844778,88.707,88.661,3.1529043]
[1772783528203,6.75844778,88.705,88.661,3.1529043]
[1772783528900,6.75844778,88.705,88.663,10.15]
[1772783529203,6.75844778,88.705,88.661,3.1529043]
[1772783530600,6.75844778,88.705,88.65,2.9582503]
[1772783530803,6.75844778,88.705,88.655,10.151]
[1772783531906,6.75844778,88.705,88.661,3.12595418]
[1772783532501,6.75844778,88.729,88.681,3.12651559]
[1772783532806,6.75844778,88.727,88.681,3.12651559]
[1772783533102,6.75844778,88.725,88.681,3.12651559]
[1772783533301,2.9582503,88.73,88.67,2.9582503]
[1772783533302,6.75844778,88.723,88.67,6.08529469]
[1772783533504,6.75844778,88.723,88.671,3.10725323]
[1772783533804,6.75844778,88.723,88.68,6.06550353]
[1772783534005,6.75844778,88.723,88.681,3.10725323]
[1772783537405,10.51584917,88.747,88.66,2.9582503]
[1772783537406,2.9582503,88.71,88.66,2.9582503]
[1772783537609,6.75844778,88.709,88.657,3.04612778]
[1772783538407,6.75844778,88.708,88.657,3.04612778]
[1772783540110,6.75844778,88.708,88.66,2.9582503]
[1772783541811,6.75844778,88.706,88.66,2.9582503]
[1772783542510,6.75844778,88.699,88.657,3.04612778]
[1772783549818,6.75844778,88.699,88.661,2.95116362]
[1772783550714,6.75844778,88.699,88.663,2.95791014]
[1772783552822,6.75844778,88.699,88.667,10.149]
[1772783557520,10.51584917,88.736,88.68,3.05332186]
[1772783557717,20.276,88.769,88.68,3.05332186]
[1772783557718,7.36607099,88.734,88.69,2.95722765]
[1772783558119,7.36607099,88.732,88.69,2.95722765]
[1772783558920,7.36607099,88.731,88.69,2.95722765]
[1772783564531,7.36607099,88.726,88.69,2.95722765]
[1772783565825,7.36607099,88.723,88.69,2.95722765]
[1772783566129,7.36607099,88.723,88.68,6.01054951]
[1772783566329,7.36607099,88.723,88.681,3.15485684]
[1772783567723,7.36607099,88.723,88.682,10.148]
[1772783567921,7.36607099,88.723,88.683,3.15474419]
[1772783568925,7.36607099,88.746,88.7,2.95722765]
[1772783569126,7.36607099,88.744,88.7,2.95722765]
[1772783569326,7.36607099,88.742,88.7,2.95722765]
[1772783569920,7.36607099,88.742,88.69,2.95722765]
[1772783570123,7.36607099,88.74,88.69,2.95722765]
[1772783570323,7.36607099,88.738,88.69,2.95722765]
[1772783572632,7.36607099,88.736,88.691,3.10902734]
[1772783575232,7.36607099,88.733,88.691,3.10902734]
[1772783576626,7.36607099,88.733,88.681,3.06297526]
[1772783576831,7.36607099,88.733,88.682,13.21097526]
[1772783577631,7.36607099,88.733,88.683,3.03884254]
[1772783579234,7.36607099,88.733,88.69,2.95722765]
[1772783580632,6.99126109,88.731,88.69,2.95722765]
[1772783582134,6.99126109,88.731,88.683,3.03884254]
[1772783585839,6.99126109,88.727,88.673,2.76017634]
[1772783586840,6.99126109,88.725,88.673,2.76017634]
[1772783588838,6.99126109,88.716,88.673,2.76017634]
[1772783589040,6.99126109,88.716,88.66,2.95722765]
[1772783589435,6.99126109,88.716,88.661,2.7777656]
[1772783589644,6.99126109,88.716,88.671,2.7777656]
[1772783591343,6.99126109,88.715,88.664,10.15]
[1772783592144,6.99126109,88.715,88.664,13.14933736]
[1772783592544,6.99126109,88.715,88.665,2.999641]
[1772783592944,7.29151907,88.712,88.665,2.999641]
[1772783596045,7.29151907,88.712,88.66,2.95722765]
[1772783596046,7.29151907,88.706,88.66,2.95722765]
[1772783599353,7.29151907,88.706,88.656,2.96747191]
[1772783599649,7.29151907,88.703,88.656,2.96747191]
[1772783599952,7.29151907,88.703,88.661,2.95248468]
[1772783602353,7.29151907,88.719,88.671,2.93853635]
[1772783603353,20.28,88.751,88.66,2.95722765]
[1772783603354,7.29151907,88.709,88.661,2.94354941]
[1772783603548,7.29151907,88.709,88.631,1.0]
[1772783603855,7.29151907,88.699,88.65,2.95722765]
[1772783604058,7.29151907,88.697,88.644,2.94354941]
[1772783604653,7.29151907,88.695,88.651,2.94372057]
[1772783605753,7.29151907,88.689,88.651,2.94372057]
[1772783607852,7.29151907,88.689,88.655,2.91304375]
[1772783615656,7.29151907,88.689,88.65,2.95722765]
[1772783615860,7.29151907,88.689,88.646,10.152]
[1772783616757,6.82558927,88.684,88.64,2.95722765]
[1772783618568,6.82558927,88.684,88.64,2.95904567]
[1772783619768,6.82558927,88.684,88.642,10.152]
[1772783622172,6.82558927,88.684,88.649,10.151]
[1772783625574,6.82558927,88.684,88.642,2.64292985]
[1772783626775,6.82558927,88.684,88.643,10.152]
[1772783626976,6.82558927,88.684,88.643,12.77850222]
[1772783627277,6.82558927,88.684,88.644,2.62670463]
[1772783629779,6.82558927,88.683,88.644,2.62670463]
[1772783631273,6.82558927,88.694,88.652,2.11249071]
[1772783635078,6.82558927,88.694,88.653,2.11452088]
[1772783636384,6.82558927,88.694,88.656,10.151]
[1772783637486,6.82558927,88.694,88.658,10.15]
[1772783639583,6.82558927,88.692,88.65,2.95904567]
[1772783642079,7.07697383,88.69,88.646,2.23668772]
[1772783642585,7.07697383,88.69,88.64,2.95904567]
[1772783643390,7.07697383,88.69,88.641,2.218679]
[1772783643893,7.07697383,88.688,88.641,2.218679]
[1772783644092,7.07697383,88.688,88.65,2.95904567]
[1772783645690,7.07697383,88.688,88.641,2.218679]
[1772783648994,7.07697383,88.686,88.641,2.218679]
[1772783653796,7.07697383,88.686,88.644,2.30197796]
[1772783653996,7.07697383,88.697,88.651,2.30210207]
[1772783654299,7.07697383,88.707,88.661,2.30210207]
[1772783654495,7.07697383,88.705,88.67,2.95904567]
[1772783654900,7.07697383,88.725,88.681,2.30210523]
[1772783655099,20.97688991,88.755,88.681,2.30210523]
[1772783655100,7.07697383,88.723,88.69,2.95904567]
[1772783655301,7.07697383,88.723,88.691,2.28791693]
[1772783655603,7.07697383,88.723,88.628,27.79718767]
[1772783655604,7.07697383,88.747,88.664,2.28791693]
[1772783655807,7.07697383,88.745,88.69,2.95904567]
[1772783656013,7.07697383,88.74,88.69,2.95904567]
[1772783656209,7.07697383,88.738,88.68,2.95904567]
[1772783656409,7.07697383,88.736,88.68,2.95904567]
[1772783656605,7.07697383,88.734,88.68,2.95904567]
[1772783656809,7.07697383,88.732,88.68,2.95904567]
[1772783657009,7.07697383,88.73,88.68,2.95904567]
[1772783657607,7.07697383,88.719,88.67,2.95904567]
[1772783657810,7.07697383,88.709,88.651,2.28960938]
[1772783658109,7.07697383,88.707,88.651,2.28960938]
[1772783658306,7.07697383,88.704,88.651,2.28960938]
[1772783660408,7.07697383,88.704,88.608,1.0]
[1772783660409,7.07697383,88.704,88.661,2.29437391]
[1772783661302,7.07697383,88.704,88.664,2.2938363]
[1772783661810,7.07697383,88.719,88.664,2.2938363]
[1772783662011,7.07697383,88.734,88.69,2.95904567]
[1772783662214,7.07697383,88.732,88.69,2.95904567]
[1772783663313,7.07697383,88.729,88.668,2.29401007]
[1772783663513,7.07697383,88.729,88.67,2.95904567]
[1772783663712,7.07697383,88.729,88.68,2.95904567]
[1772783664608,2.95904567,88.73,88.68,2.95904567]
[1772783664609,8.51580623,88.728,88.68,2.95904567]
[1772783664814,20.97688991,88.771,88.64,1.0]
[1772783664815,2.95904567,88.72,88.67,2.95904567]
[1772783665121,7.07697383,88.709,88.658,2.48683814]
[1772783665511,2.95904567,88.7,88.65,2.95904567]
[1772783665814,7.07697383,88.699,88.65,2.95904567]
[1772783667515,7.07697383,88.699,88.644,2.44922355]
[1772783667713,7.07697383,88.699,88.65,2.95904567]
[1772783669618,7.07697383,88.697,88.65,2.95904567]
[1772783669819,7.07697383,88.697,88.644,2.44922355]
[1772783670214,7.23654579,88.691,88.644,2.44922355]
[1772783671021,7.20451358,88.689,88.644,2.44922355]
[1772783671721,7.20451358,88.689,88.646,2.33459107]
[1772783671916,7.20451358,88.689,88.65,2.95904567]
[1772783672616,7.20451358,88.701,88.646,2.33459107]
[1772783672821,7.20451358,88.701,88.651,2.33472163]
[1772783674932,7.20451358,88.701,88.66,2.95904567]
[1772783675131,7.20451358,88.701,88.654,2.33812325]
[1772783675933,7.20451358,88.701,88.656,10.151]
[1772783677327,7.20451358,88.699,88.656,10.151]
[1772783677535,7.20451358,88.699,88.65,2.95904567]
[1772783678634,7.20451358,88.699,88.65,2.95832467]
[1772783678834,7.20451358,88.696,88.65,2.95832467]
[1772783682235,7.20451358,88.693,88.648,10.151]
[1772783682734,7.20451358,88.693,88.649,2.51356024]
[1772783683136,7.20451358,88.693,88.651,2.51363578]
[1772783685733,10.147,88.692,88.651,2.51363578]
[1772783685938,7.20451358,88.691,88.64,2.95832467]
[1772783686138,7.20451358,88.691,88.641,2.68115853]
[1772783686837,7.20451358,88.689,88.641,2.68115853]
[1772783689938,7.20451358,88.689,88.65,2.95832467]
[1772783690138,7.20451358,88.689,88.65,5.55749583]
[1772783691036,7.20451358,88.689,88.65,2.95832467]
[1772783691234,7.20451358,88.689,88.643,2.5992347]
[1772783691638,7.20451358,88.7,88.651,2.58081647]
[1772783692836,7.20451358,88.699,88.653,2.58087979]
[1772783696048,10.142,88.732,88.685,17.57307887]
[1772783696345,2.95832467,88.73,88.68,2.95832467]
[1772783696541,8.49325617,88.729,88.68,2.95832467]
[1772783696741,8.49325617,88.728,88.68,2.95832467]
[1772783696939,8.49325617,88.727,88.68,2.95832467]
[1772783697238,10.51989186,88.743,88.618,11.13193719]
[1772783697239,2.95832467,88.72,88.67,2.95832467]
[1772783697443,8.49325617,88.719,88.661,7.42607887]
[1772783697639,2.95832467,88.71,88.661,7.42607887]
[1772783698036,7.20451358,88.709,88.661,7.42607887]
[1772783705949,7.25854281,88.707,88.661,7.42607887]
[1772783708851,7.25854281,88.707,88.663,7.12379859]
[1772783711051,2.95832467,88.71,88.63,20.72635999]
[1772783711052,7.25854281,88.705,88.652,7.12379859]
[1772783711256,7.25854281,88.699,88.652,7.12379859]
[1772783712753,7.25854281,88.698,88.652,7.12379859]
[1772783713757,7.25854281,88.692,88.642,7.12379859]
[1772783714158,7.25854281,88.692,88.651,7.12379859]
[1772783721365,7.25854281,88.69,88.651,7.12379859]
[1772783725263,7.25854281,88.699,88.651,7.12379859]
[1772783725473,7.25854281,88.699,88.661,7.12379859]
[1772783730667,7.27561787,88.697,88.661,7.12379859]
[1772783733074,7.27561787,88.697,88.67,2.95832467]
[1772783733370,7.27561787,88.713,88.67,2.95832467]
[1772783733570,7.27561787,88.711,88.67,2.95832467]
[1772783733770,7.27561787,88.709,88.67,2.95832467]
[1772783735270,7.27561787,88.709,88.665,7.41416473]
[1772783735965,7.27561787,88.707,88.665,7.41416473]
[1772783738166,7.27561787,88.699,88.65,2.95832467]
[1772783738471,7.27561787,88.697,88.643,7.41416473]
[1772783739568,7.27561787,88.697,88.652,7.41416473]
[1772783741873,7.27561787,88.697,88.655,7.41416473]
[1772783742872,7.27561787,88.697,88.657,7.41416473]
[1772783745570,10.145,88.705,88.657,7.41416473]
[1772783745771,10.145,88.705,88.65,2.95869231]
[1772783745772,7.27561787,88.689,88.641,7.41416473]
[1772783745970,7.27561787,88.687,88.641,7.41416473]
[1772783746775,7.27561787,88.687,88.647,7.41416473]
[1772783748477,7.27561787,88.687,88.65,2.95869231]
[1772783748977,7.27561787,88.687,88.65,10.37285704]
[1772783750176,7.27561787,88.687,88.65,7.41416473]
[1772783750874,7.27561787,88.687,88.653,7.41416473]
[1772783753875,7.27561787,88.687,88.644,17.56616473]
[1772783754179,7.27561787,88.685,88.644,17.56616473]
[1772783754379,7.27561787,88.685,88.645,7.41416473]
[1772783760486,7.27561787,88.685,88.617,11.26984663]
[1772783760487,10.149,88.673,88.613,7.53487811]
[1772783760688,20.289,88.711,88.613,7.53487811]
[1772783760689,2.95869231,88.66,88.613,7.53487811]
[1772783760989,2.95869231,88.66,88.566,1.0]
[1772783760990,7.01472843,88.643,88.581,7.53487811]
[1772783761182,7.01472843,88.657,88.601,7.53487811]
[1772783761387,7.01472843,88.655,88.601,7.53487811]
[1772783762084,7.01472843,88.655,88.61,2.95869231]
[1772783762288,7.01472843,88.655,88.614,10.155]
[1772783762483,10.148,88.677,88.621,7.53487811]
[1772783762484,7.01472843,88.67,88.621,7.53487811]
[1772783764792,7.01472843,88.67,88.623,10.154]
[1772783764993,7.01472843,88.67,88.63,2.95869231]
[1772783765695,7.01472843,88.668,88.621,7.53487811]
[1772783768496,7.01472843,88.696,88.633,7.53487811]
[1772783768693,7.01472843,88.696,88.651,7.53487811]
[1772783769388,7.01472843,88.696,88.654,7.53487811]
[1772783769592,7.01472843,88.696,88.653,10.151]
[1772783769593,7.01472843,88.709,88.661,7.53487811]
[1772783771393,7.01472843,88.709,88.67,2.95869231]
[1772783771590,7.01472843,88.722,88.671,7.53487811]
[1772783771790,10.145,88.704,88.64,10.152]
[1772783771998,10.51989186,88.752,88.651,7.53487811]
[1772783771999,2.95869231,88.7,88.651,7.53487811]
[1772783772199,7.01472843,88.719,88.67,2.95869231]
[1772783772395,7.01472843,88.719,88.68,10.49357042]
[1772783773699,7.01472843,88.719,88.68,7.53487811]
[1772783773900,7.01472843,88.719,88.681,7.53487811]
[1772783774100,7.01472843,88.739,88.681,7.53487811]
[1772783774899,7.01472843,88.739,88.683,7.53487811]
[1772783775901,7.01472843,88.735,88.683,7.53487811]
[1772783776102,7.01472843,88.729,88.683,7.53487811]
[1772783777002,7.01472843,88.729,88.685,7.53487811]
[1772783778797,7.01472843,88.729,88.686,10.147]
[1772783779601,7.01472843,88.729,88.685,7.53487811]
[1772783781500,2.95869231,88.72,88.685,7.53487811]
[1772783782094,7.01472843,88.729,88.685,7.53487811]
[1772783786804,7.01472843,88.727,88.685,7.53487811]
[1772783787700,7.01472843,88.723,88.685,7.53487811]
[1772783788006,10.143,88.724,88.671,1.0]
[1772783788007,7.01472843,88.719,88.671,1.0]
[1772783788201,7.01472843,88.699,88.649,7.53487811]
[1772783788409,14.04223149,88.756,88.649,7.53487811]
[1772783788410,2.95869231,88.69,88.649,7.53487811]
[1772783789109,7.01472843,88.695,88.65,7.53487811]
[1772783790606,7.5167611,88.689,88.65,7.53487811]
[1772783791006,2.95869231,88.68,88.638,7.09867806]
[1772783791207,7.60598805,88.679,88.638,7.09867806]
[1772783795812,7.60598805,88.703,88.651,7.09867806]
[1772783796014,7.60598805,88.699,88.651,7.09867806]
[1772783796617,2.95869231,88.69,88.651,7.09867806]
[1772783796817,7.60598805,88.689,88.635,7.09867806]
[1772783797419,7.60598805,88.689,88.638,7.09867806]
[1772783797620,7.60598805,88.689,88.641,7.09867806]
[1772783798819,7.60598805,88.686,88.641,7.09867806]
[1772783808428,7.60598805,88.703,88.661,7.09867806]
[1772783810433,2.95900203,88.71,88.661,7.09867806]
[1772783810434,7.60598805,88.699,88.661,7.09867806]
[1772783811828,17.75198805,88.696,88.661,7.09867806]
[1772783812230,7.60598805,88.695,88.661,7.09867806]
[1772783820133,2.95900203,88.71,88.661,7.09867806]
[1772783820339,10.144,88.714,88.661,7.09867806]
[1772783820634,6.94418244,88.713,88.663,6.92851511]
[1772783821041,6.94418244,88.729,88.671,6.92851511]
[1772783821236,6.94418244,88.719,88.671,6.92851511]
[1772783821441,6.94418244,88.709,88.66,6.92851511]
[1772783822738,6.94418244,88.709,88.661,6.92851511]
[1772783823740,6.94418244,88.709,88.661,17.07851511]
[1772783823939,6.94418244,88.709,88.662,6.92851511]
[1772783824148,6.94418244,88.709,88.671,6.92851511]
[1772783834752,2.95900203,88.7,88.656,6.92851511]
[1772783834957,6.94418244,88.699,88.656,6.92851511]
[1772783836955,6.94418244,88.698,88.656,6.92851511]
[1772783840060,10.145,88.707,88.661,6.92851511]
[1772783840353,6.94418244,88.709,88.671,6.92851511]
[1772783844165,8.53465984,88.708,88.671,6.92851511]
[1772783844362,6.94418244,88.709,88.671,6.92851511]
[1772783844561,8.53562149,88.708,88.671,6.92851511]
[1772783844761,6.94418244,88.709,88.671,6.92851511]
[1772783844961,8.53562114,88.708,88.671,6.92851511]
[1772783845265,8.53696236,88.707,88.671,6.92851511]
[1772783845464,6.94418244,88.709,88.671,6.92851511]
[1772783845664,8.53696236,88.708,88.671,6.92851511]
[1772783845864,8.53696236,88.707,88.671,6.92851511]
[1772783846159,6.94418244,88.709,88.671,6.92851511]
[1772783846362,6.94418244,88.699,88.658,6.92851511]
[1772783846562,6.94418244,88.699,88.653,10.151]
[1772783846563,6.94418244,88.697,88.653,10.151]
[1772783847868,6.94418244,88.696,88.653,10.151]
[1772783848462,6.94418244,88.696,88.65,2.95900203]
[1772783849167,6.94418244,88.696,88.65,9.88751714]
[1772783850770,6.94418244,88.696,88.651,6.45706377]
[1772783857280,6.39772684,88.694,88.651,6.45706377]
[1772783857476,6.39772684,88.692,88.651,6.45706377]
[1772783864082,6.39772684,88.692,88.65,2.95813143]
[1772783864083,6.39772684,88.692,88.653,6.45706377]
[1772783872390,6.39772684,88.704,88.653,6.45706377]
[1772783872590,6.39772684,88.702,88.653,6.45706377]
[1772783872788,6.39772684,88.7,88.66,2.95813143]
[1772783873086,6.39772684,88.698,88.66,2.95813143]
[1772783873290,6.39772684,88.696,88.66,2.95813143]
[1772783875192,6.39772684,88.696,88.655,6.45706377]
[1772783876095,6.39772684,88.695,88.655,6.45706377]
[1772783877893,6.39772684,88.704,88.655,6.45706377]
[1772783878094,6.39772684,88.702,88.655,6.45706377]
[1772783878288,10.145,88.705,88.655,6.45706377]
[1772783878289,6.39772684,88.7,88.655,6.45706377]
[1772783878488,6.39772684,88.698,88.655,6.45706377]
[1772783878690,6.39772684,88.696,88.655,6.45706377]
[1772783878886,6.39772684,88.694,88.655,6.45706377]
[1772783881599,5.68494152,88.692,88.655,6.45706377]
[1772783881798,5.68494152,88.69,88.655,6.45706377]
[1772783883499,5.68494152,88.688,88.655,6.45706377]
[1772783890101,8.54805717,88.687,88.655,6.45706377]
[1772783890410,5.68494152,88.688,88.655,6.45706377]
[1772783890610,8.54794126,88.687,88.655,6.45706377]
[1772783890809,5.68494152,88.688,88.655,6.45706377]
[1772783892010,8.54923473,88.687,88.655,6.45706377]
[1772783892205,5.68494152,88.688,88.655,6.45706377]
[1772783892400,8.54862942,88.687,88.655,6.45706377]
[1772783892710,5.68494152,88.687,88.655,6.45706377]
[1772783898410,10.51989186,88.709,88.62,1.0]
[1772783898411,5.68494152,88.679,88.631,5.72182522]
[1772783899809,5.68494152,88.677,88.631,5.72182522]
[1772783900706,2.95813143,88.68,88.631,5.72182522]
[1772783900707,5.68494152,88.673,88.631,5.72182522]
[1772783901307,5.68494152,88.671,88.631,5.72182522]
[1772783901713,5.68494152,88.669,88.631,5.72182522]
[1772783902813,2.95813143,88.66,88.617,5.72182522]
[1772783903015,5.68494152,88.659,88.617,5.72182522]
[1772783903815,5.68494152,88.669,88.621,5.72182522]
[1772783904115,5.68494152,88.669,88.631,5.72182522]
[1772783906516,5.68494152,88.667,88.621,5.67658655]
[1772783906813,5.68494152,88.665,88.621,5.67658655]
[1772783910216,4.74289067,88.663,88.621,5.67658655]
[1772783910611,4.74289067,88.663,88.618,10.155]
[1772783910612,4.74372723,88.639,88.572,5.14684986]
[1772783910810,4.74372723,88.649,88.601,5.14684986]
[1772783911517,2.95813143,88.68,88.621,5.14684986]
[1772783911710,4.74372723,88.678,88.621,5.14684986]
[1772783911907,4.74372723,88.676,88.621,5.14684986]
[1772783912318,4.74372723,88.676,88.63,8.10498129]
[1772783912519,4.74372723,88.676,88.631,5.14684986]
[1772783912711,4.74372723,88.676,88.64,2.95813143]
[1772783912917,4.74372723,88.676,88.631,5.14684986]
[1772783913111,4.74372723,88.689,88.641,5.14684986]
[1772783913317,4.74372723,88.709,88.66,2.95813143]
[1772783913620,4.74372723,88.707,88.66,2.95813143]
[1772783913921,2.95813143,88.71,88.66,2.95813143]
[1772783913922,4.74372723,88.705,88.66,2.95813143]
[1772783914119,4.74372723,88.703,88.66,2.95813143]
[1772783914319,8.51736943,88.702,88.661,5.12500746]
[1772783914518,4.74372723,88.703,88.661,5.12500746]
[1772783914916,4.74372723,88.716,88.67,8.08140027]
[1772783915122,8.51532129,88.715,88.67,8.08140027]
[1772783915321,4.74372723,88.716,88.67,8.08140027]
[1772783915519,8.51470575,88.715,88.671,5.14619893]
[1772783915713,4.74372723,88.716,88.671,5.14619893]
[1772783915919,10.143,88.721,88.681,5.14619893]
[1772783916523,4.74372723,88.72,88.681,5.14619893]
[1772783917427,4.74372723,88.718,88.681,5.14619893]
[1772783918326,4.74372723,88.718,88.67,2.95813143]
[1772783918526,4.74372723,88.709,88.669,5.03770531]
[1772783919824,4.74372723,88.708,88.669,5.03770531]
[1772783920022,4.74372723,88.708,88.601,4.94674942]
[1772783920228,4.74372723,88.699,88.65,2.95813143]
[1772783920619,4.74372723,88.697,88.651,4.94516421]
[1772783922124,4.74372723,88.689,88.64,2.95823946]
[1772783922430,4.74372723,88.689,88.641,4.96765123]
[1772783922632,4.74372723,88.677,88.626,4.96592839]
[1772783925232,2.95823946,88.67,88.626,4.96592839]
[1772783926432,4.74372723,88.683,88.641,4.85373534]
[1772783934132,4.74372723,88.683,88.591,1.0]
[1772783934133,2.95823946,88.69,88.645,4.54651898]
[1772783934338,4.74372723,88.696,88.651,4.54651898]
[1772783935834,4.74372723,88.692,88.651,4.54651898]
[1772783937134,2.95823946,88.69,88.651,4.54651898]
[1772783937334,4.74372723,88.687,88.643,10.152]
[1772783938228,4.74372723,88.679,88.643,10.152]
[1772783939041,4.74372723,88.679,88.639,4.4958579]
[1772783943342,4.59012067,88.678,88.632,1.0]
[1772783943646,4.59012067,88.678,88.628,4.28251892]
[1772783944344,4.59012067,88.678,88.632,4.29249486]
[1772783945742,4.59012067,88.678,88.634,4.26589293]
[1772783947849,14.73812067,88.678,88.634,4.26589293]
[1772783948146,4.59012067,88.678,88.634,4.26589293]
[1772783948948,10.147,88.688,88.634,4.26589293]
[1772783949151,14.73712067,88.688,88.641,4.22616178]
[1772783949342,4.59012067,88.687,88.641,4.22616178]
[1772783950356,4.59012067,88.685,88.641,4.22616178]
[1772783951851,2.95823946,88.68,88.641,4.22616178]
[1772783952050,4.59012067,88.679,88.641,4.22616178]
[1772783962361,4.59012067,88.679,88.645,4.11192911]
[1772783968960,4.59012067,88.677,88.631,4.0476661]
[1772783969165,4.59012067,88.675,88.631,4.0476661]
[1772783969362,4.59012067,88.673,88.631,4.0476661]
[1772783973268,4.59012067,88.673,88.633,3.94917585]
[1772783976175,4.59012067,88.673,88.641,3.91018926]
[1772783980275,4.18553339,88.689,88.641,3.91018926]
[1772783981980,4.18553339,88.689,88.643,3.81400077]
[1772783982678,4.18553339,88.689,88.645,3.80149908]
[1772783991082,10.147,88.688,88.645,3.80149908]
[1772783991281,4.18553339,88.679,88.645,3.80149908]
[1772783991479,4.18553339,88.679,88.631,3.68271097]
[1772783991788,4.18553339,88.675,88.631,3.68271097]
[1772783993390,2.9588203,88.67,88.631,3.68271097]
[1772783993691,4.18553339,88.669,88.631,3.68271097]
[1772783996986,4.18553339,88.689,88.633,3.62268303]
[1772783997185,4.18553339,88.699,88.65,2.9588203]
[1772783997690,4.18553339,88.699,88.641,3.62268303]
[1772783998091,4.18553339,88.689,88.641,3.62268303]
[1772783998491,4.18553339,88.689,88.651,3.62688767]
[1772783998991,4.18553339,88.689,88.64,6.58570797]
[1772783999293,4.18553339,88.679,88.63,2.9588203]
[1772783999491,4.18553339,88.679,88.631,3.61728143]
[1772783999791,4.18553339,88.679,88.632,3.60954712]
[1772784000391,4.18553339,88.679,88.634,3.58618919]
[1772784001187,4.30793168,88.677,88.624,3.57529508]
[1772784002887,4.30793168,88.674,88.613,3.63840147]
[1772784004495,4.30793168,88.651,88.57,3.71411111]
[1772784004686,4.30793168,88.651,88.572,3.71411111]
[1772784005191,4.30793168,88.651,88.59,3.71411111]
[1772784005793,0.07631517,88.629,88.59,3.71411111]
[1772784006190,4.38424685,88.629,88.59,3.71411111]
[1772784006489,4.30793168,88.629,88.59,3.71411111]
[1772784006693,0.08670101,88.618,88.59,3.71411111]
[1772784006894,0.08670101,88.618,88.59,13.87211111]
[1772784008494,4.30793168,88.64,88.597,3.7069708]
[1772784009494,4.30793168,88.651,88.6,3.72198589]
[1772784010391,4.30793168,88.651,88.617,0.07739215]
[1772784013093,4.30793168,88.668,88.617,3.70812012]
[1772784013497,4.30793168,88.657,88.617,0.07739215]
[1772784013796,4.30793168,88.657,88.568,3.49414373]
[1772784013995,4.30793168,88.657,88.591,3.49414373]
[1772784014192,4.30793168,88.645,88.591,3.49414373]
[1772784015093,20.29,88.709,88.591,3.49414373]
[1772784015302,4.30793168,88.657,88.611,3.55906377]
[1772784015896,4.30793168,88.657,88.625,0.07847142]
[1772784016098,4.30793168,88.657,88.593,3.52863993]
[1772784016803,4.30793168,88.657,88.607,10.156]
[1772784017502,0.07719525,88.641,88.607,10.156]
[1772784018401,0.07719525,88.641,88.593,3.52863993]
[1772784018402,4.38512693,88.641,88.593,3.52863993]
[1772784018701,4.38512693,88.641,88.569,3.62023979]
[1772784018901,4.38512693,88.641,88.568,1.0]
[1772784018902,4.38512693,88.641,88.571,3.62023979]
[1772784019201,4.30793168,88.641,88.571,3.62023979]
[1772784019402,4.30793168,88.637,88.571,3.62023979]
[1772784019603,0.08344406,88.615,88.571,3.62023979]
[1772784019901,0.08344406,88.615,88.578,10.159]
[1772784020803,0.08344406,88.615,88.583,13.73706227]
[1772784021299,4.30793168,88.628,88.583,13.73706227]
[1772784021698,0.07900356,88.608,88.584,3.5849242]
[1772784022001,0.07900356,88.608,88.589,3.5849242]
[1772784022506,4.30793168,88.64,88.591,3.57712336]
[1772784022904,4.30793168,88.654,88.591,3.57712336]
[1772784023408,4.30793168,88.654,88.605,3.56993046]
[1772784023908,4.30793168,88.654,88.621,0.08321468]
[1772784027310,4.30793168,88.645,88.568,3.60316759]
[1772784027511,4.30793168,88.645,88.57,3.60579096]
[1772784027810,4.30793168,88.645,88.595,10.158]
[1772784028205,4.30793168,88.645,88.573,3.59900177]
[1772784028407,4.30793168,88.645,88.575,3.59900177]
[1772784028700,4.38724607,88.629,88.575,3.59900177]
[1772784029211,4.30793168,88.629,88.575,3.59900177]
[1772784029709,0.07457701,88.611,88.575,3.59900177]
[1772784029909,0.07457701,88.611,88.586,10.159]
[1772784031512,4.26247963,88.65,88.592,3.46217555]
[1772784032812,4.26247963,88.648,88.596,10.157]
[1772784033412,4.26247963,88.648,88.613,0.07545996]
[1772784033612,4.26247963,88.643,88.613,0.07545996]
[1772784033914,4.26247963,88.63,88.592,3.46217555]
[1772784034106,4.26247963,88.63,88.578,13.68475286]
[1772784035213,4.33599786,88.613,88.578,13.68475286]
[1772784035615,0.07351823,88.613,88.578,13.68475286]
[1772784035809,4.26247963,88.625,88.582,3.51350189]
[1772784036115,0.07583044,88.604,88.582,3.51350189]
[1772784036814,0.07583044,88.604,88.585,10.159]
[1772784037010,0.07583044,88.604,88.585,13.66609931]
[1772784037208,4.26247963,88.625,88.586,3.50709931]
[1772784037511,4.26247963,88.625,88.586,3.58493438]
[1772784040212,4.26247963,88.625,88.589,10.158]
[1772784040516,4.26247963,88.65,88.59,3.47892526]
[1772784041215,4.26247963,88.65,88.591,10.158]
[1772784041616,4.26247963,88.645,88.591,10.158]
[1772784042118,4.26247963,88.645,88.581,10.159]
[1772784042418,4.26247963,88.626,88.581,10.159]